Cogmind - Beta 13 @@@ ROGUE MODE // 2024.03.11 @ 23:30:25 Player: ILikeVoltron Result: Self-destructed Performance ------------- Evolutions (2) 1000 Regions Visited (3) 600 Robots Destroyed (82) 410 Value Destroyed (2173) 2173 Prototype IDs (4) 80 Alien Tech Used (0) 0 Bonus (145) 145 TOTAL SCORE: 4408 Bonus ------- High Alert Combat Kills 145 Cogmind --------- Core Integrity 147/550 Matter 275/300 Energy 265/265 System Corruption 0% Temperature Hot (294) Movement Walking (260) Ox2 Location -8/Materials Parts ------- > --- POWER (1) -------- Reinforced Ion Engine > --- PROPULSION (3) --- Carbon-fiber Leg > --- UTILITY (4) ------ Large Storage Unit Machine Analyzer > --- WEAPON (3) ------- Particle Gun Mini Grenade Launcher > --- INVENTORY (15) --- Light Nuclear Core Light Nuclear Core Aluminum Leg Aluminum Leg Carbon-fiber Leg Carbon-fiber Leg Titanium Leg Armored Wheel Large Matter Pod (150) Terrain Scan Processor Actuator Array Improved Light Armor Plating Heavy Assault Rifle High-powered Shotgun Great Maul Peak State ------------ > --- POWER ------------ Reinforced Ion Engine > --- PROPULSION ------- Carbon-fiber Leg Carbon-fiber Leg Titanium Leg > --- UTILITY ---------- Large Storage Unit Machine Analyzer Improved Sensor Array Improved Light Armor Plating > --- WEAPON ----------- Arc Projector Particle Gun Great Maul > --- INVENTORY -------- Light Nuclear Core Light Nuclear Core Aluminum Leg Aluminum Leg Carbon-fiber Leg Carbon-fiber Leg Titanium Leg Armored Wheel Large Matter Pod Terrain Scan Processor Actuator Array Improved Light Armor Plating Heavy Assault Rifle High-powered Shotgun Mini Grenade Launcher [Rating: 33] Favorites ----------- Power Light Nuclear Core Engine Improved Ion Engine Power Core Light Nuclear Core Propulsion Aluminum Leg Leg Aluminum Leg Utility Machine Analyzer Device Improved Sensor Array Storage Large Storage Unit Processor Machine Analyzer Protection Light Armor Plating Weapon Assault Rifle Energy Gun Particle Gun Energy Cannon Advanced Beam Cannon Ballistic Gun Assault Rifle Ballistic Cannon Light Cannon Launcher EMP Blaster Impact Weapon Great Maul Build | -11 -10 -9 -8 ------- Run | Yrd Mat Mat Mat Slots Evolved 4 | . . 2 2 Power . | . . . . Propulsion 1 | . . 1 . Utility 2 | . . 1 1 Weapon 1 | . . . 1 Parts Attached 78 | . 5 32 41 Power 11 | . 1 6 4 Engine 6 | . . 4 2 Core 5 | . 1 2 2 Reactor . | . . . . Propulsion 22 | . 1 11 10 Treads . | . . . . Leg 22 | . 1 11 10 Wheel . | . . . . Hover . | . . . . Flight . | . . . . Utility 25 | . 1 9 15 Device 12 | . 1 3 8 Storage 4 | . . 3 1 Processor 2 | . . 1 1 Hackware . | . . . . Protection 7 | . . 2 5 Artifact . | . . . . Weapon 20 | . 2 6 12 Energy Gun 3 | . . . 3 Energy Cannon 5 | . . 2 3 Ballistic Gun 8 | . 1 4 3 Ballistic Cannon 1 | . . . 1 Launcher 2 | . 1 . 1 Special Weapon . | . . . . Impact Weapon 1 | . . . 1 Slashing Weapon . | . . . . Piercing Weapon . | . . . . Special Melee Weapon . | . . . . Unidentified Prototypes 2 | . . 1 1 Parts Lost 24 | . . 5 19 Power 3 | . . 2 1 Propulsion 4 | . . 1 3 Utility 8 | . . 2 6 Weapon 9 | . . . 9 Highest Loss Streak 7 | . . 2 7 To Critical Strikes . | . . . . Average Slot Usage (%) 96 | . 97 99 93 Engine 4 | . 2 4 5 Core 5 | . 11 6 2 Leg 29 | . 28 33 27 Device 8 | . 11 7 8 Storage 10 | . 14 12 9 Processor 7 | . . 8 9 Protection 5 | . . 4 7 Energy Gun 2 | . . . 5 Energy Cannon 3 | . . 4 2 Ballistic Gun 13 | . 27 17 7 Impact Weapon 3 | . . . 6 Naked Turns . | . . . . Heaviest Build 45 | 14 17 35 45 Greatest Support 51 | 20 20 30 51 Greatest Overweight (x) 1 | . . 1 1 Average Overweight (x) . | . . . . Largest Inventory Capacity 15 | 8 8 15 15 Average Capacity 11 | 8 8 9 15 Most Carried 15 | 6 8 15 15 Average Carried 11 | 6 7 9 14 Final Capacity 15 | 8 8 15 15 Final Carried 15 | 6 8 15 15 Class Distribution -------------------- 61% | Scavenger-Mutant 31% | Mutant 6% | Skirmisher Dominant Class ---------------- Mutant | -10/Materials Scavenger-Mutant | -9/Materials Mutant | -8/Materials Resources | -11 -10 -9 -8 ----------- Run | Yrd Mat Mat Mat Matter Collected 1747 | 200 226 749 572 Remotely . | . . . . Salvage Created 2680 | . 401 1187 1092 Parts 181 | . 36 85 60 Haulers Intercepted 3 | . . 3 . Recyclers Shooed 3 | . 1 2 . Parts Field Recycled 11 | . . . 11 Retrieved Matter 86 | . . . 86 Parts Self-Destructed . | . . . . Prevented . | . . . . Kills | -11 -10 -9 -8 ------- Run | Yrd Mat Mat Mat Combat Hostiles Destroyed 54 | . 10 20 24 Melee 3 | . . . 3 Guns 17 | . 6 9 2 Cannons 20 | . . 11 9 AOE 7 | . 4 . 3 Classes Destroyed 13 | . 6 5 2 Worker 5 | . 1 3 1 Builder 5 | . 1 1 3 Tunneler 3 | . . . 3 Hauler 3 | . . 3 . Recycler 1 | . . 1 . Mechanic 2 | . . 2 . Operator 4 | . 2 . 2 Watcher 5 | . 2 3 . Swarmer 11 | . 5 3 3 Grunt 28 | . 5 11 12 Brawler 1 | . . 1 . Sentry 12 | . . 5 7 Hunter 2 | . . . 2 Best Kill Streak 9 | . 9 4 6 Combat Bots Only 5 | . 5 4 5 Max Kills in Single Turn 3 | . 2 2 3 Gunslinging 1 | . 1 . . Exploded 2 | . 2 . 2 Melee 1 | . . . 1 Uniques/NPCs Destroyed . | . . . . Combat | -11 -10 -9 -8 -------- Run | Yrd Mat Mat Mat Hostile Shots Fired 395 | . 46 119 230 Missed 90 | . 12 18 60 Damage Taken 4267 | . 330 1198 2739 Core 710 | . 47 260 403 Absorbed by Shields 12 | . . . 12 Core Remaining (%) 72 | 100 81 35 . Volleys Fired 197 | . 30 93 74 Largest 3 | . 2 2 3 Hottest 151 | . 40 88 151 Shots Fired 350 | . 53 177 120 Gun 267 | . 46 137 84 Cannon 72 | . . 40 32 Launcher 11 | . 7 . 4 Special . | . . . . Kinetic 245 | . 46 137 62 Thermal 73 | . . 40 33 Explosive 4 | . . . 4 Electromagnetic 28 | . 7 . 21 Robot Hit Streak 15 | . 6 12 15 Robot Miss Streak 5 | . 4 5 3 Penetration Max . | . . . . Secondary Targets 2 | . 1 1 . Max Gunslinging Chain 1 | . 1 1 . Shots Hit Robots 232 | . 25 107 100 Core Hits 125 | . 24 55 46 Critical Kills 4 | . 1 1 2 Critical Parts Destroyed 6 | . 1 . 5 Critical Strikes 11 | . 2 1 8 Destroy 3 | . 2 1 . Corrupt 1 | . . . 1 Smash 7 | . . . 7 Melee Attacks 29 | . . . 29 Impact 29 | . . . 29 Slashing . | . . . . Piercing . | . . . . Sneak Attacks 5 | . . . 5 Combat Hostiles . | . . . . Follow-up Attacks . | . . . . Damage Inflicted 5342 | . 736 1542 3064 Guns 2008 | . 343 1028 637 Cannons 948 | . . 514 434 Explosions 1103 | . 387 . 716 Melee 1277 | . . . 1277 Ramming 6 | . 6 . . Kinetic 1866 | . 343 1028 495 Thermal 1146 | . 128 514 504 Explosive 614 | . . . 614 Electromagnetic 433 | . 259 . 174 Impact 1277 | . . . 1277 Slashing . | . . . . Piercing . | . . . . Highest Corruption . | . . . . Average Corruption . | . . . . Corruption Purged . | . . . . Corruption Blocked . | . . . . Overload Shots . | . . . . Overflow Damage 644 | . 15 3 626 Projectiles 3 | . . 3 . Explosions 40 | . 15 . 25 Melee 601 | . . . 601 Knockbacks 8 | . . . 8 Impact 7 | . . . 7 Kinetic 1 | . . . 1 Secondary . | . . . . Self-Inflicted Damage 51 | . 6 . 45 Shots 4 | . 2 . 2 Rammed . | . . . . Targets Rammed 1 | . 1 . . Kicked 1 | . 1 . . Crushed . | . . . . Highest Temperature 410 | . 10 336 410 Average Temperature 122 | . 2 100 150 Received Heat Transfer 1774 | . 123 525 1126 Effects 7 | . . 4 3 Shutdowns 1 | . . . 1 Energy Bleed 2 | . . 1 1 Interference 3 | . . 3 . Damage (minor) 1 | . . . 1 Siege Activations . | . . . . Robots Corrupted . | . . . . Combat Hostiles . | . . . . Parts Fried 17 | . 1 . 16 Impact Corruptions 19 | . . . 19 Robots Melted . | . . . . Combat Hostiles . | . . . . Parts Melted 1 | . . . 1 Heat Transferred 2039 | . 200 925 914 Parts Sabotaged . | . . . . Parts Stolen . | . . . . Parts Stripped . | . . . . Power Chain Reactions 5 | . 4 . 1 Alert | -11 -10 -9 -8 ------- Run | Yrd Mat Mat Mat Peak Influence 484 | . 239 484 476 Initial 204 | . . 100 204 Average 289 | . 104 277 351 Maximum Alert Level 2 | . 1 2 2 Low Security (%) 20 | 100 77 26 . Level 1 58 | . 22 60 68 Level 2 20 | . . 13 31 Level 3 . | . . . . Level 4 . | . . . . Level 5 . | . . . . High Security . | . . . . Max Security . | . . . . Squads Dispatched 10 | . 2 3 5 Investigation 1 | . . 1 . Extermination . | . . . . Reinforcement 9 | . 2 2 5 Assault . | . . . . Garrison . | . . . . Intercept . | . . . . Searches Triggered . | . . . . Construction Impeded 2 | . . . 2 Haulers Reinforced . | . . . . Active Scanning Responses . | . . . . Cargo Convoy Interrupts . | . . . . Stealth | -11 -10 -9 -8 --------- Run | Yrd Mat Mat Mat Distress Signals 3 | . . 1 2 Communications Jammed . | . . . . Distress Signals . | . . . . Times Spotted 89 | . 16 34 39 Peak Tracking Total 6 | . 6 6 6 Tactical Retreats 4 | . 1 3 . Traps | -11 -10 -9 -8 ------- Run | Yrd Mat Mat Mat Traps Triggered 2 | . . 1 1 Indirectly . | . . . . Trap Hack Attempts . | . . . . Triggered . | . . . . Disarmed . | . . . . Reprogrammed . | . . . . Reused . | . . . . Traps Extracted . | . . . . Installed . | . . . . Triggered . | . . . . Machines | -11 -10 -9 -8 ---------- Run | Yrd Mat Mat Mat Machines Disabled 1 | . . . 1 Max in Single Turn 1 | . . . 1 Garrison Access 1 | . . . 1 Machines Repaired . | . . . . Machines Dismantled . | . . . . Machines Sabotaged . | . . . . Overloaded Fab Kills . | . . . . Hacking | -11 -10 -9 -8 --------- Run | Yrd Mat Mat Mat Machines Accessed 12 | . 2 5 5 Terminals 9 | . 2 5 2 Fabricators . | . . . . Repair Stations . | . . . . Recycling Units 1 | . . . 1 Scanalyzers 1 | . . . 1 Garrison Access 1 | . . . 1 Total Hacks 26 | . 4 10 12 Successful 13 | . 2 4 7 Failed 13 | . 2 6 5 Catastrophic 5 | . 2 2 1 Database Lockouts . | . . . . Manual 5 | . . 5 . Terminals 18 | . 4 10 4 Fabricators . | . . . . Repair Stations . | . . . . Recycling Units 3 | . . . 3 Scanalyzers 4 | . . . 4 Garrison Access 1 | . . . 1 Terminal Hacks 7 | . 2 4 1 Record 2 | . . 2 . Part Schematic 1 | . . 1 . Robot Analysis 1 | . 1 . . Prototype ID Bank 1 | . . . 1 Unreport Threat 1 | . 1 . . Registered Components 1 | . . 1 . Fabricator Hacks . | . . . . Repair Station Hacks . | . . . . Recycling Unit Hacks 1 | . . . 1 Report Inventory 1 | . . . 1 Scanalyzer 4 | . . . 4 Insert Component 2 | . . . 2 Analyze 2 | . . . 2 Garrison Access Hacks 1 | . . . 1 Seal Access 1 | . . . 1 Unauthorized Hacks . | . . . . Terminals . | . . . . Fabricators . | . . . . Repair Stations . | . . . . Recycling Units . | . . . . Scanalyzers . | . . . . Garrison Access . | . . . . Data Cores Recovered 1 | . 1 . . Used . | . . . . Hacking Detections 10 | . 2 4 4 Full Trace Events 1 | . . 1 . Feedback Events . | . . . . Feedback Blocked . | . . . . Robot Schematics Acquired . | . . . . Robots Built . | . . . . Authchips . | . . . . Time . | . . . . Total Robot Build Rating . | . . . . Part Schematics Acquired 3 | . . 1 2 Parts Built . | . . . . Authchips . | . . . . Time . | . . . . Total Part Build Rating . | . . . . Parts Repaired . | . . . . Time . | . . . . Parts Recycled . | . . . . Recycled Matter . | . . . . Retrieved Matter . | . . . . Retrieved Components . | . . . . Parts Scanalyzed 2 | . . . 2 Part Schematics Acquired 2 | . . . 2 Parts Damaged . | . . . . Bothacking | -11 -10 -9 -8 ------------ Run | Yrd Mat Mat Mat Used RIF Installer . | . . . . Robots Hacked . | . . . . Non-combat . | . . . . Combat . | . . . . Robot Hacks Applied . | . . . . Relay Couplers Released . | . . . . Fabnet Peak Effective % . | . . . . Robots Rewired . | . . . . Allies Hacked . | . . . . Hacks Repelled . | . . . . Allies | -11 -10 -9 -8 -------- Run | Yrd Mat Mat Mat Total Allies . | . . . . Largest Group . | . . . . Highest-Rated Group . | . . . . Highest-Rated Ally . | . . . . Total Orders . | . . . . Ally Attacks . | . . . . Total Damage . | . . . . Kills . | . . . . Allies Corrupted . | . . . . Allies Melted . | . . . . Intel | -11 -10 -9 -8 ------- Run | Yrd Mat Mat Mat Robot Analysis Total 1 | . 1 . . Derelict Logs Recovered . | . . . . Drone Launches . | . . . . Drone Recoveries . | . . . . Exploration | -11 -10 -9 -8 ------------- Run | Yrd Mat Mat Mat Turns Passed 2843 | 8 354 1176 1305 Spaces Moved 1590 | 7 197 613 773 Core . | . . . . Treads . | . . . . Legs 1590 | 7 197 613 773 Wheels . | . . . . Hover . | . . . . Flight . | . . . . Fastest Speed 120 | 120 120 120 123 Average Speed 124 | 120 120 125 124 Slowest Speed 195 | 120 120 190 195 Overloaded Moves . | . . . . Propulsion Burnouts . | . . . . Robots Hopped . | . . . . Cave-ins Triggered . | . . . . Exploration Rate (%) 37 | 2 42 51 56 Regions Visited 3 Branch Regions . Pre-discovered Areas . | . . . . Known Exits Taken . | . . . . Unknown Exits Taken 3 | 1 1 1 . Scrap Searched . | . . . . Spaces Dug . | . . . . Terrain Destroyed 46 | . 12 . 34 Melee . | . . . . Projectile . | . . . . AOE 46 | . 12 . 34 Terrain Rammed . | . . . . Walls Destroyed . | . . . . Machines Disabled . | . . . . Actions | -11 -10 -9 -8 --------- Run | Yrd Mat Mat Mat Total 2085 | 6 264 857 958 Wait 116 | . 16 87 13 Move 1587 | 6 196 612 773 Hop . | . . . . Pick Up 31 | . 8 15 8 Fast Attach 20 | . 2 4 14 Attach 13 | . . 5 8 Detach 1 | . . . 1 Swap 45 | . 3 23 19 Drop 45 | . 8 18 19 Fire 197 | . 30 93 74 Melee 29 | . . . 29 Ram . | . . . . Kick 1 | . 1 . . Crush . | . . . . Escape Stasis . | . . . . Rewire . | . . . . Trap . | . . . . Miscellaneous . | . . . . Route ------- -11/Scrapyard -10/Materials (discovered 3 exits: *Mat x2 / [*Min]) -9/Materials (discovered 2 exits: *Mat x2) -8/Materials (discovered 1 exit: [*Fac]) History --------- Turn | Location | Event 1 | -11/Scrapyard | Discovered new exit (range 3) 9 | -11/Scrapyard | Entered Materials 189 | -10/Materials | Discovered new exit (range 13) 310 | -10/Materials | Discovered new exit (range 12) 332 | -10/Materials | Build established: Mutant 333 | -10/Materials | Discovered new exit (range 15) 363 | -10/Materials | Entered another Materials area 363 | -9/Materials | Evolved 2 slots: Propulsion x1, Utility x1 635 | -9/Materials | Build established: Scavenger-Mutant 912 | -9/Materials | Core integrity fell below 50% 1112 | -9/Materials | Discovered new exit (range 15) 1471 | -9/Materials | Discovered new exit (range 11) 1539 | -9/Materials | Entered another Materials area 1539 | -8/Materials | Evolved 2 slots: Utility x1, Weapon x1 1825 | -8/Materials | Lost 5 parts (3u2w) 1878 | -8/Materials | Lost 7 parts (1p1n1u4w) 2048 | -8/Materials | Discovered new exit (range 8) 2599 | -8/Materials | Build established: Mutant 2824 | -8/Materials | Core integrity fell below 50% 2844 | -8/Materials | Self-destructed Last Messages --------------- 02832_ ALERT: Hostile activity reported, dispatching reinforcements to area. 02832_ Knocked back. 02834_ Arc Projector destroyed. 02834_ Knocked back. 02834_ U-05 Engineer lays Concrete. 02835_ Destroyed Targeting Computer. 02835_ >> Machine Analyzer network decryption results: 02835_ Terminal x1 02835_ U-05 Engineer lays Concrete. 02837_ U-05 Engineer builds a Wall. 02840_ The unstable cave ceiling collapses. 02840_ Titanium Leg destroyed. 02840_ Carbon-fiber Leg destroyed. 02841_ Destroyed Imp. Hover Unit. 02841_ G-47 Trooper destroyed. 02841_ U-05 Engineer builds a Wall. 02841_ ALERT: Construction progress impeded, dispatching reinforcements to local area. 02842_ Imp. Light Armor Plating destroyed. 02842_ Imp. Sensor Array destroyed. 02842_ Knocked back. Map ----- +----------------------------------------------------+ | ??????????????????????????????????????????????? | | ??????????????????????????????????????????????? | | ??????????????????????????????????????????????? | | ??????????????????????????????????????????????? | | ??????????????????????????????????????????????? | | ??????????????????????????????????????????????? | | ??????????????????????????????????????????????? | | ???????????????????????? ???????????????????? | | ???????????????????????? ???????????????????? | | ""??"""????????????????? ???????????????????? | | ""??"""??????????"""? ?# #? ????????????????? | | ""??"""??""??????""" ## ## ?? ?????????????? | | ?????????T"??????""" w # ? ?????????????? | | ?????????""??????? a ##+#?????????????? | | ?????????????????""" g ??????????????? | | ?????????????????""" g ??????????????? | | ?????????????????""" = ???????????????? | | ???????????????????? u #???????????????? | | ?????????????????"""? H ????????????????? | | ?????????????????"""? g= ????"""?????????? | | ?????????????????"""?? #!%[ ?????"""?????????? | | ??????????????????????## ??????"""?????????? | | ???????????????????????#u #?"""??"""?????????? | | ???????????????????????# %#?"T???????????????? | | ?????######????????????# %#?"""??????????????? | | ????##!!!!##???????????# @a#??????????????????? | | ????#! !#???????????# #??????????????????? | | ????# #??????????#; #??????????????????? | | ##### ###?########### #???"""????????????? | | #???# ! ## #???"""?""?""??????? | | ##### """ ## #???"""?""S""??????? | | * / = """ ## ##??????""""???????? | | ! = #### """ # #####+##??????????? | | """ = #??# # ######?????? | | """ #??# """ + #?????? | | """ = #??# """ # #### #?????? | | #??# """ # #####+##### #?????? | | #??# ####### ## #?????? | | #??##########?????# """ ## #?????? | | !=% ! #?????????????????# """ ## #?????? | | #+### #?????????????????# """ ## #?????? | | =% #######?????????????????# ## #?????? | | #???????????????????????# """ ! ##%#?????? | | ^ #???????????????????????# """ ## #?????? | | #?????????????????????????""" !## #?????? | | ^* #??????????????????????????? ## #?????? | | % #???????????????????????????####### #?????? | | #?????????????????????????????????# #?????? | | #?????????????????????????????????# #?????? | | #?????????????????????????????????# #?????? | +----------------------------------------------------+ Best States ------------- Heat Dissipation 45 Energy Generation 14 Energy Capacity 265 Matter Stores 300 Matter Capacity 400 Sight Range 16 Robot Scan Range 15 Terrain Scan Range 14 Terrain Scan Density 10 Armor Coverage 150 Evasion (%) 55 Item Schematics ----------------- Lrg. Storage Unit | -9/Materials | Hacked Aluminum Leg | -8/Materials | Scanalyzed Titanium Leg | -8/Materials | Scanalyzed Robot Schematics ------------------ None Fabricated ------------ Nothing Alien Tech Used ----------------- None Achievements -------------- None Challenges ------------ None Game ------ Seed StructuralWardroneFalx Manual? 0 Play Time 00:44:51 Cumulative 101.6 hours Start 2024.03.11 @ 22:46:14 End 2024.03.11 @ 23:30:25 Sessions 5 Manual Loads 0 Difficulty Rogue Special Mode None Game No. 159 Rogue 155 Adventurer 0 Explorer 4 Win Type - Total 0 Types 0/0/0/0/0/0/0/0/0 Lore% 24 Gallery% 40 Achievement% 33 Wizard Run 0 Options --------- Layout 2 ASCII 0 Keyboard 1 Movement Arrows Keybinds 0 Fullscreen 2 Font 32/SmallcapsGlow Map View 130x44 Zoom Use 0% Tactical HUD 1 Map Filters NONE Filters NONE Steam 1 RUN: 8624bb23-acd4-4728-acb2-7bc49fe791c5